bitfinex-derivatives/quotes_BTCF0:USTF0_20250528
["timestamp","ask_amount","ask_price","bid_price","bid_amount"]
[1748461216622,0.36154582,107300.0,107290.0,0.60017448]
[1748461216911,0.36154582,107300.0,107290.0,0.80721043]
[1748461217112,0.36154582,107300.0,107290.0,0.80921043]
[1748461217315,0.36154582,107300.0,107290.0,0.80909043]
[1748461217500,0.57859332,107300.0,107290.0,0.80909043]
[1748461217705,0.39224582,107300.0,107290.0,0.80921043]
[1748461218013,0.39224582,107300.0,107290.0,0.59717448]
[1748461218214,0.39224582,107300.0,107290.0,0.80921043]
[1748461218420,0.75304582,107300.0,107290.0,0.80921043]
[1748461218615,0.78494582,107300.0,107290.0,0.80921043]
[1748461218810,0.99129332,107300.0,107290.0,0.80921043]
[1748461219016,1.08494582,107300.0,107290.0,0.80921043]
[1748461219212,1.06129332,107300.0,107290.0,0.80921043]
[1748461219523,1.32129332,107300.0,107290.0,0.56958436]
[1748461219714,1.32129332,107300.0,107290.0,0.56140035]
[1748461219715,1.46839332,107300.0,107290.0,0.56140035]
[1748461220021,1.28204582,107300.0,107290.0,0.57399623]
[1748461220222,1.46839322,107300.0,107290.0,0.57409719]
[1748461220429,1.28204582,107300.0,107290.0,0.57409719]
[1748461220610,1.46839332,107300.0,107290.0,0.57408419]
[1748461221413,1.46839332,107300.0,107290.0,0.54228419]
[1748461221607,1.46839332,107300.0,107290.0,0.27228419]
[1748461221808,1.51839332,107300.0,107290.0,0.37228419]
[1748461222004,1.51839332,107300.0,107290.0,0.37232227]
[1748461222213,1.51839332,107300.0,107290.0,0.37232814]
[1748461222926,1.51839332,107300.0,107290.0,0.37233205]
[1748461223219,1.51839332,107300.0,107290.0,0.37234641]
[1748461223611,1.51839332,107300.0,107290.0,0.37234949]
[1748461224013,1.51839332,107300.0,107290.0,0.37234746]
[1748461224416,1.51839332,107300.0,107290.0,0.37234582]
[1748461224616,1.51839332,107300.0,107290.0,0.37234428]
[1748461224831,1.51839332,107300.0,107290.0,0.58438023]
[1748461224832,1.15304582,107300.0,107290.0,0.58438023]
[1748461225119,0.00074582,107300.0,107290.0,1.0148363]
[1748461225414,0.00074582,107300.0,107290.0,1.05492369]
[1748461226408,0.00074582,107300.0,107290.0,1.66572369]
[1748461227009,0.00013952,107310.0,107290.0,1.47935889]
[1748461227227,2e-08,107310.0,107300.0,0.49408335]
[1748461227419,2e-08,107310.0,107300.0,1.10417074]
[1748461227617,2e-08,107310.0,107300.0,1.19736274]
[1748461227917,2e-08,107310.0,107300.0,1.44736274]
[1748461228122,2e-08,107310.0,107300.0,1.55816274]
[1748461228418,2e-08,107310.0,107300.0,1.34613013]
[1748461228620,2e-08,107310.0,107300.0,1.55816608]
[1748461229311,2e-08,107310.0,107300.0,1.55916608]
[1748461229708,2e-08,107310.0,107300.0,1.56016608]
[1748461230210,2e-08,107310.0,107300.0,1.61822584]
[1748461230927,2e-08,107310.0,107300.0,1.98282584]
[1748461231125,2e-08,107310.0,107300.0,2.44394584]
[1748461231524,0.82176,107330.0,107320.0,0.1863127]
[1748461231733,0.36042709,107330.0,107320.0,0.89113042]
[1748461231911,0.3608,107340.0,107330.0,0.1862954]
[1748461231912,0.82176,107340.0,107330.0,0.1862954]
[1748461232115,0.86172,107340.0,107330.0,0.73853135]
[1748461232421,0.4008,107340.0,107330.0,0.73890426]
[1748461232924,0.4008,107340.0,107330.0,0.73690426]
[1748461233118,0.8614,107340.0,107330.0,0.73690426]
[1748461233320,0.8644,107340.0,107330.0,0.77504055]
[1748461233516,0.8644,107340.0,107330.0,0.73490426]
[1748461234024,0.8664,107340.0,107330.0,0.73490426]
[1748461234411,0.4058,107340.0,107330.0,0.73490426]
[1748461234911,0.3658,107340.0,107330.0,0.7750502]
[1748461235318,0.3638,107340.0,107330.0,0.7750502]
[1748461236326,0.3638,107340.0,107330.0,0.56301425]
[1748461236527,0.3638,107340.0,107330.0,0.73490426]
[1748461236725,0.3638,107340.0,107330.0,0.77506374]
[1748461238017,0.82328,107340.0,107330.0,0.77506374]
[1748461240728,0.3638,107340.0,107330.0,0.73490426]
[1748461241028,0.82256,107340.0,107330.0,0.77504913]
[1748461242524,0.85446,107340.0,107330.0,0.77504913]
[1748461243223,0.82256,107340.0,107330.0,0.77504913]
[1748461243620,1.008838,107340.0,107330.0,0.77504913]
[1748461243823,0.82256,107340.0,107330.0,0.77504913]
[1748461244029,0.85456,107340.0,107330.0,0.77504913]
[1748461245127,1.040838,107340.0,107330.0,0.562993]
[1748461245332,0.3958,107340.0,107330.0,0.562993]
[1748461245534,0.91768,107340.0,107330.0,0.562993]
[1748461245737,0.91768,107340.0,107330.0,0.77502895]
[1748461246233,0.91768,107340.0,107330.0,0.562993]
[1748461246432,0.91768,107340.0,107330.0,0.77502895]
[1748461247235,0.91768,107340.0,107330.0,0.562993]
[1748461247425,0.91768,107340.0,107330.0,0.77502895]
[1748461247739,0.91768,107340.0,107330.0,0.562993]
[1748461248035,0.91768,107340.0,107330.0,0.77502895]
[1748461248737,0.85728,107340.0,107330.0,0.77502895]
[1748461250137,0.88908,107340.0,107330.0,0.77502895]
[1748461250340,0.88908,107340.0,107330.0,0.562993]
[1748461250544,0.88908,107340.0,107330.0,0.77502895]
[1748461251236,1.075358,107340.0,107330.0,0.7795445]
[1748461251440,1.315358,107340.0,107330.0,0.7795445]
[1748461251636,1.315358,107340.0,107330.0,0.77970891]
[1748461251938,1.315358,107340.0,107330.0,0.56767296]
[1748461252535,1.315358,107340.0,107330.0,0.56779296]
[1748461252739,1.12908,107340.0,107330.0,0.77982891]
[1748461253138,1.09728,107340.0,107330.0,0.77982891]
[1748461253338,1.09728,107340.0,107330.0,0.77987816]
[1748461253738,1.12938,107340.0,107330.0,0.77987816]
[1748461253946,1.12938,107340.0,107330.0,0.56784221]
[1748461254133,1.315658,107340.0,107330.0,0.74967816]
[1748461254333,1.12938,107340.0,107330.0,0.74967816]
[1748461254635,1.12938,107340.0,107330.0,0.78227816]
[1748461255438,1.12938,107340.0,107330.0,0.78506816]
[1748461255636,0.6679,107340.0,107330.0,0.78506816]
[1748461255938,0.3958,107340.0,107330.0,0.84312792]
[1748461256143,0.85728,107340.0,107330.0,0.84312792]
[1748461256327,0.3958,107340.0,107330.0,0.93021757]
[1748461256529,0.035,107340.0,107330.0,0.93021757]
[1748461256731,0.033,107340.0,107330.0,0.93021757]
[1748461256939,0.034,107340.0,107330.0,0.93021757]
[1748461257140,0.002,107340.0,107330.0,0.93021757]
[1748461257537,0.92017768,107350.0,107340.0,0.186278]
[1748461257742,1.08017768,107350.0,107340.0,0.84351934]
[1748461257938,1.07997768,107350.0,107340.0,0.84351934]
[1748461258345,0.61913768,107350.0,107340.0,0.84351934]
[1748461258545,1.07989768,107350.0,107340.0,0.84351934]
[1748461258746,0.61913768,107350.0,107340.0,0.84351934]
[1748461258935,1.08045768,107350.0,107340.0,0.84351934]
[1748461259245,1.08145768,107350.0,107340.0,0.84351934]
[1748461259544,1.26771828,107350.0,107340.0,0.84351934]
[1748461259747,1.26871828,107350.0,107340.0,0.77741934]
[1748461260042,1.26871828,107350.0,107340.0,0.56538339]
[1748461260341,1.48871828,107350.0,107340.0,0.53518339]
[1748461260552,1.48871828,107350.0,107340.0,0.04084563]
[1748461260553,1.81723423,107350.0,107340.0,0.04084563]
[1748461260848,1.95410896,107350.0,107340.0,0.04084563]
[1748461261047,2.06996477,107350.0,107340.0,0.22724363]
[1748461261252,1.98309004,107350.0,107340.0,0.22724363]
[1748461261640,1.77105409,107350.0,107340.0,0.22720389]
[1748461262145,1.77305409,107350.0,107340.0,0.22720389]
[1748461262532,1.86109708,107350.0,107340.0,0.22720389]
[1748461263248,1.74324127,107350.0,107340.0,0.22720389]
[1748461263550,1.74624127,107350.0,107340.0,0.25900389]
[1748461264850,1.74624127,107350.0,107340.0,0.2593768]
[1748461265041,1.74624127,107350.0,107340.0,0.2275768]
[1748461265953,1.74624127,107350.0,107340.0,0.22756656]
[1748461266250,1.95827722,107350.0,107340.0,0.04128856]
[1748461266552,2.33024604,107350.0,107340.0,0.00538137]
[1748461266741,2.43024604,107350.0,107340.0,0.00538137]
[1748461266941,2.45950806,107350.0,107340.0,0.00526137]
[1748461267145,2.45950806,107350.0,107340.0,0.00538137]
[1748461267346,2.45950806,107350.0,107340.0,0.00526137]
[1748461267643,2.45950806,107350.0,107340.0,0.00538137]
[1748461269554,2.43028619,107350.0,107340.0,0.00538137]
[1748461270050,0.336278,107340.0,107330.0,0.00418756]
[1748461270251,1.63714984,107340.0,107330.0,0.00418756]
[1748461270441,1.49223021,107340.0,107330.0,0.00418756]
[1748461270646,1.63710126,107340.0,107330.0,0.00418756]
[1748461271053,1.30921705,107340.0,107330.0,0.00418756]
[1748461271349,1.49223397,107340.0,107330.0,0.00418756]
[1748461271762,1.49323397,107340.0,107330.0,0.00418756]
[1748461271950,1.49523397,107340.0,107330.0,0.00418756]
[1748461273154,0.1862954,107330.0,107320.0,0.00013952]
[1748461273353,2.84665135,107330.0,107320.0,1e-08]
[1748461273549,3.64673436,107330.0,107320.0,0.01273047]
[1748461273750,0.1863474,107300.0,107290.0,0.23433977]
[1748461273951,2.03809619,107300.0,107290.0,0.23396686]
[1748461274147,2.12450664,107300.0,107290.0,0.23408686]
[1748461274347,2.12450664,107300.0,107290.0,0.23396686]
[1748461274650,2.12450664,107300.0,107290.0,0.23408686]
[1748461274854,2.12450664,107300.0,107290.0,0.23396686]
[1748461275056,2.12450664,107300.0,107290.0,0.23408686]
[1748461275251,2.12450664,107300.0,107290.0,0.23708686]
[1748461275647,2.12450664,107300.0,107290.0,0.24108686]
[1748461275852,2.12450664,107300.0,107290.0,0.23796686]
[1748461276053,2.14268731,107300.0,107290.0,0.23808686]
[1748461276248,2.14268731,107300.0,107290.0,0.00514516]
[1748461276551,2.14268731,107300.0,107280.0,0.18929922]
[1748461276552,0.1863648,107290.0,107280.0,0.18929922]
[1748461276753,1.19264844,107290.0,107280.0,0.18929922]
[1748461276950,1.19302135,107290.0,107280.0,0.18929922]
[1748461277757,1.19302135,107290.0,107280.0,0.18941922]
[1748461277959,1.19302135,107290.0,107280.0,0.19341922]
[1748461278355,1.19302135,107290.0,107280.0,0.19329922]
[1748461278356,1.20691442,107290.0,107280.0,0.19329922]
[1748461278557,1.20691442,107290.0,107280.0,0.19341922]
[1748461279152,1.20691442,107290.0,107280.0,0.00704952]
[1748461279465,1.20691442,107290.0,107280.0,0.19331172]
[1748461279651,0.99473078,107290.0,107280.0,0.00704952]
[1748461279850,0.1863996,107270.0,107260.0,0.2965193]
[1748461280160,1.84297251,107270.0,107260.0,0.2965193]
[1748461280346,1.87427251,107270.0,107260.0,0.3065193]
[1748461280546,1.90607251,107270.0,107260.0,0.3065193]
[1748461281061,1.90607251,107270.0,107260.0,0.3165193]
[1748461282257,1.65657291,107270.0,107260.0,0.3065193]
[1748461282455,1.03197291,107270.0,107260.0,0.72870294]
[1748461282660,0.36117291,107270.0,107260.0,0.72870294]
[1748461282857,0.36117291,107270.0,107260.0,0.5165193]
[1748461283168,0.36117291,107270.0,107260.0,0.72870294]
[1748461283353,0.36117291,107270.0,107260.0,0.5165193]
[1748461284361,0.93577952,107280.0,107270.0,0.1863996]
[1748461284659,0.73093952,107280.0,107270.0,0.73728324]
[1748461284854,0.73093952,107280.0,107270.0,0.5250996]
[1748461285063,1.19005952,107280.0,107270.0,0.5250996]
[1748461285560,1.19005952,107280.0,107270.0,0.5270996]
[1748461285757,0.73093952,107280.0,107270.0,0.75499034]
[1748461285955,0.73093952,107280.0,107270.0,0.74228324]
[1748461285956,0.38093952,107280.0,107270.0,0.74228324]
[1748461286166,0.00013952,107280.0,107270.0,1.22563083]
[1748461286370,0.3608,107290.0,107280.0,0.1863822]
[1748461286559,0.3608,107290.0,107280.0,0.70909343]
[1748461287264,0.5471648,107290.0,107280.0,0.49690979]
[1748461287468,0.3608,107290.0,107280.0,0.49692782]
[1748461287857,0.3608,107290.0,107280.0,0.4597822]
[1748461288359,0.3608,107290.0,107280.0,0.4999378]
[1748461288958,0.3608,107290.0,107280.0,0.71212144]
[1748461289560,0.3608,107290.0,107280.0,0.74512144]
[1748461290561,0.3608,107290.0,107280.0,0.74540766]
[1748461293362,0.3608,107290.0,107280.0,0.78893794]
[1748461294571,0.3608,107290.0,107280.0,0.78889573]
[1748461294974,0.3608,107290.0,107280.0,0.79341128]
[1748461295370,0.3608,107290.0,107280.0,0.74999268]
[1748461295568,0.3608,107290.0,107280.0,0.79341128]
[1748461297976,0.3608,107290.0,107280.0,0.77515078]
[1748461298573,0.3608,107290.0,107280.0,0.8333699]
[1748461298972,0.3608,107290.0,107280.0,1.02729304]
[1748461299375,0.3627112,107300.0,107290.0,0.1863648]
[1748461299577,0.7227112,107300.0,107290.0,0.78678965]
[1748461299872,0.3627112,107300.0,107290.0,0.88835073]
[1748461300080,0.0019112,107300.0,107290.0,0.88835073]
[1748461300569,0.3627112,107300.0,107290.0,0.88835073]
[1748461300878,0.0019112,107300.0,107290.0,0.88835073]
[1748461301278,0.3627112,107300.0,107290.0,0.88835073]
[1748461302781,0.3627112,107300.0,107290.0,0.83031651]
[1748461304781,0.3627112,107300.0,107290.0,0.88837627]
[1748461305575,0.3627112,107300.0,107290.0,0.83031651]
[1748461305769,0.3627112,107300.0,107290.0,0.63639337]
[1748461306075,0.4290112,107300.0,107290.0,0.83043651]
[1748461306267,0.6465586,107300.0,107290.0,0.83043651]
[1748461306670,0.4602112,107300.0,107290.0,0.83043651]
[1748461307172,0.4602112,107300.0,107290.0,0.83041577]
[1748461309476,0.8522312,107300.0,107290.0,0.83041577]
[1748461309685,0.8522312,107300.0,107290.0,0.88847553]
[1748461310369,0.8837312,107300.0,107290.0,0.88847553]
[1748461310782,0.5227312,107300.0,107290.0,0.88847553]
[1748461311087,0.8835312,107300.0,107290.0,0.89299108]
[1748461311282,0.8835312,107300.0,107290.0,0.89305082]
[1748461311587,0.8835312,107300.0,107290.0,0.84951613]
[1748461311881,0.8835312,107300.0,107290.0,0.84953238]
[1748461312385,0.8835312,107300.0,107290.0,0.66846156]
[1748461312572,1.4198797,107300.0,107290.0,0.63596156]
[1748461312879,1.4198797,107300.0,107290.0,0.5777818]
[1748461313185,1.4198797,107300.0,107290.0,0.53422948]
[1748461313479,1.4198797,107300.0,107290.0,0.5777818]
[1748461313685,1.4198797,107300.0,107290.0,0.5779018]
[1748461315489,1.4198797,107300.0,107290.0,0.57806471]
[1748461316579,1.4198797,107300.0,107290.0,0.79019157]
[1748461317384,1.4198797,107300.0,107290.0,0.57806471]
[1748461318489,1.4198797,107300.0,107290.0,0.79019157]
[1748461318681,1.4198797,107300.0,107290.0,0.82069157]
[1748461318886,1.4198797,107300.0,107290.0,0.57806471]
[1748461320283,1.4198797,107300.0,107290.0,0.60856471]
[1748461321680,1.2335312,107300.0,107290.0,0.60856471]
[1748461322278,1.2335312,107300.0,107290.0,0.66662447]
[1748461323489,1.2335312,107300.0,107290.0,0.87875133]
[1748461325288,0.7774112,107300.0,107290.0,0.87875133]
[1748461325490,0.8827312,107300.0,107290.0,0.66662447]
[1748461325695,0.8827312,107300.0,107290.0,0.87875133]
[1748461326096,0.8827312,107300.0,107290.0,0.66662447]
[1748461326980,0.4274112,107300.0,107290.0,0.66662447]
[1748461327193,0.8828512,107300.0,107290.0,0.66662447]
[1748461327989,1.0691995,107300.0,107290.0,0.60856471]
[1748461328195,1.76664636,107300.0,107290.0,0.17869847]
[1748461328492,1.90342415,107300.0,107290.0,0.04493611]
[1748461328681,1.90342415,107300.0,107290.0,0.23142171]
[1748461328877,1.90342415,107300.0,107290.0,0.23130171]
[1748461329086,1.90342415,107300.0,107290.0,0.23142171]
[1748461329884,1.90342415,107300.0,107290.0,0.19100115]
[1748461331498,1.69129729,107300.0,107290.0,0.23100115]
[1748461331998,1.69129729,107300.0,107290.0,0.30300256]
[1748461332390,1.12053729,107300.0,107290.0,0.30300256]
[1748461332695,1.69081729,107300.0,107290.0,0.33380256]
[1748461334503,0.93418899,107300.0,107290.0,0.33380256]
[1748461334689,0.9127312,107300.0,107290.0,0.6777641]
[1748461334890,1.3671712,107300.0,107290.0,0.6777641]
[1748461335796,1.3669312,107300.0,107290.0,0.72140646]
[1748461337185,0.5859112,107300.0,107290.0,0.72140646]
[1748461337406,0.5527112,107300.0,107290.0,0.72140646]
[1748461337591,1.0068312,107300.0,107290.0,0.72140646]
[1748461338393,1.0065912,107300.0,107290.0,0.52744492]
[1748461338703,1.0676912,107300.0,107290.0,0.72140646]
[1748461339306,1.0676912,107300.0,107290.0,0.72419646]
[1748461339498,1.0368912,107300.0,107290.0,0.78225622]
[1748461340090,1.0065912,107300.0,107290.0,0.78225622]
[1748461340600,1.0065112,107300.0,107290.0,0.69821245]
[1748461340797,1.0065112,107300.0,107290.0,0.78225187]
[1748461342604,1.0060312,107300.0,107290.0,0.82571475]
[1748461342997,0.00051243,107300.0,107290.0,1.14765499]
[1748461343202,0.00051243,107300.0,107290.0,1.50845499]
[1748461343698,0.00051243,107300.0,107290.0,1.14765499]
[1748461343900,0.00051243,107300.0,107290.0,1.50845499]
[1748461344098,0.00051243,107300.0,107290.0,1.99026879]
[1748461344300,3e-08,107300.0,107290.0,1.96342254]
[1748461344493,3e-08,107300.0,107290.0,1.96442254]
[1748461344891,3e-08,107300.0,107290.0,2.07820501]
[1748461346503,0.3608,107310.0,107300.0,0.1863488]
[1748461346819,0.3608,107310.0,107300.0,1.24591105]
[1748461348302,0.42583804,107320.0,107310.0,0.1863314]
[1748461348504,0.74546513,107320.0,107310.0,0.98258353]
[1748461348701,0.96416513,107320.0,107310.0,0.59466045]
[1748461348902,0.12116513,107320.0,107310.0,1.04070101]
[1748461349207,0.93388513,107320.0,107310.0,1.0406442]
[1748461349400,0.93384513,107320.0,107310.0,1.0406442]
[1748461349604,0.96634513,107320.0,107310.0,1.0406442]
[1748461349907,0.45404513,107320.0,107310.0,1.0406442]
[1748461350109,0.36296513,107320.0,107310.0,1.0406442]
[1748461350298,0.00216513,107320.0,107310.0,1.0406442]
[1748461350693,0.00316513,107320.0,107310.0,1.71787359]
[1748461351003,0.00216513,107320.0,107310.0,1.80509079]
[1748461351199,3e-08,107320.0,107310.0,2.25661079]
[1748461351406,3e-08,107320.0,107310.0,2.19849331]
[1748461351593,0.81228,107330.0,107320.0,0.1863141]
[1748461351797,0.91228,107330.0,107320.0,1.01588526]
[1748461351998,0.81228,107330.0,107320.0,1.01625817]
[1748461352203,0.3608,107330.0,107320.0,0.95822742]
[1748461353307,0.3608,107330.0,107320.0,0.95812339]
[1748461353509,0.3925,107330.0,107320.0,0.76416185]
[1748461353706,0.3925,107330.0,107320.0,0.95812339]
[1748461355212,0.3925,107330.0,107320.0,0.91463167]
[1748461355398,0.4248,107330.0,107320.0,0.91463167]
[1748461355594,0.4248,107330.0,107320.0,0.75463167]
[1748461355799,0.4248,107330.0,107320.0,0.56067013]
[1748461356008,0.064,107330.0,107320.0,1.13812339]
[1748461356211,0.3925,107330.0,107320.0,1.09463167]
[1748461356911,0.0317,107330.0,107320.0,1.13812339]
[1748461357205,0.3925,107330.0,107320.0,1.09463167]
[1748461357513,0.3925,107330.0,107320.0,1.13804838]
[1748461357700,0.3608,107330.0,107320.0,1.09459562]
[1748461358010,0.42473952,107340.0,107330.0,0.1862967]
[1748461358011,0.45553952,107340.0,107330.0,0.1862967]
[1748461358310,0.64173952,107340.0,107330.0,0.73309858]
[1748461358504,0.64173952,107340.0,107330.0,0.73347149]
[1748461358699,0.64173952,107340.0,107330.0,1.10692425]
[1748461358700,0.46093952,107340.0,107330.0,1.10692425]
[1748461359411,0.46193952,107340.0,107330.0,1.10692425]
[1748461359611,0.36193952,107340.0,107330.0,1.10692425]
[1748461359804,0.00113952,107340.0,107330.0,1.10692425]
[1748461360008,0.00213952,107340.0,107330.0,1.10692425]
[1748461360213,0.39573952,107340.0,107330.0,1.10692425]
[1748461362004,0.42823952,107340.0,107330.0,0.91296271]
[1748461362206,0.42823952,107340.0,107330.0,1.10692425]
[1748461362814,0.42823952,107340.0,107330.0,0.58308271]
[1748461363009,0.42823952,107340.0,107330.0,0.65962995]
[1748461363210,0.42823952,107340.0,107330.0,0.67178271]
[1748461363402,0.42823952,107340.0,107330.0,0.67166271]
[1748461363605,0.42823952,107340.0,107330.0,0.67178271]
[1748461363907,0.42823952,107340.0,107330.0,0.62832995]
[1748461365711,0.42823952,107340.0,107330.0,0.82229149]
[1748461365903,0.42823952,107340.0,107330.0,0.82223408]
[1748461366316,0.42823952,107340.0,107330.0,0.86568338]
[1748461367814,0.42823952,107340.0,107330.0,0.62827254]
[1748461368121,0.42823952,107340.0,107330.0,0.82223408]
[1748461368616,0.42823952,107340.0,107330.0,0.86568338]
[1748461369909,0.42823952,107340.0,107330.0,0.74568338]
[1748461370107,0.42823952,107340.0,107330.0,0.70223408]
[1748461370307,0.42823952,107340.0,107330.0,0.74576688]
[1748461370915,0.42823952,107340.0,107330.0,0.77816688]
[1748461371115,0.42823952,107340.0,107330.0,0.78547243]
[1748461372025,0.42823952,107340.0,107330.0,0.78549642]
[1748461372623,0.42823952,107340.0,107330.0,0.59153488]
[1748461372926,0.42823952,107340.0,107330.0,0.78549642]
[1748461374209,0.42823952,107340.0,107330.0,0.84352717]
[1748461374611,0.42823952,107340.0,107330.0,0.84359704]
[1748461378211,0.42823952,107340.0,107330.0,0.88727281]
[1748461379020,0.42823952,107340.0,107330.0,0.88728643]
[1748461379722,0.42823952,107340.0,107330.0,0.60610769]
[1748461380019,0.42823952,107340.0,107330.0,0.80006923]
[1748461380221,0.42823952,107340.0,107330.0,0.88728643]
[1748461381015,0.42823952,107340.0,107330.0,0.80006923]
[1748461381408,0.42823952,107340.0,107330.0,0.76766923]
[1748461381620,0.42823952,107340.0,107330.0,0.76804214]
[1748461382228,0.42823952,107340.0,107330.0,0.88605934]
[1748461382424,0.42823952,107340.0,107330.0,0.79884214]
[1748461382728,0.42823952,107340.0,107330.0,0.88605934]
[1748461382924,0.87871952,107340.0,107330.0,0.88605934]
[1748461383227,0.87871952,107340.0,107330.0,0.88609043]
[1748461384121,0.87871952,107340.0,107330.0,0.82805968]
[1748461384333,0.87871952,107340.0,107330.0,0.88623745]
[1748461384626,0.87871952,107340.0,107330.0,0.82805968]
[1748461385029,0.87871952,107340.0,107330.0,0.88623781]
[1748461385323,0.87871952,107340.0,107330.0,0.82805968]
[1748461385527,0.87819952,107340.0,107330.0,0.69228332]
[1748461385724,1.06447892,107340.0,107330.0,0.50598662]
[1748461385925,1.57844046,107340.0,107330.0,0.61790837]
[1748461386125,1.38447892,107340.0,107330.0,0.55972319]
[1748461386329,1.38447892,107340.0,107330.0,0.55960319]
[1748461386627,1.38447892,107340.0,107330.0,0.55972319]
[1748461386923,0.93451892,107340.0,107330.0,0.35972319]
[1748461387123,0.74823952,107340.0,107330.0,0.84186991]
[1748461387323,1.19907952,107340.0,107330.0,0.87476991]
[1748461387523,1.19907952,107340.0,107330.0,0.63716612]
[1748461387829,1.19907952,107340.0,107330.0,0.83112766]
[1748461388125,1.19907952,107340.0,107330.0,0.87476954]
[1748461388329,1.19907952,107340.0,107330.0,0.83112766]
[1748461388829,1.19907952,107340.0,107330.0,0.63716612]
[1748461389126,1.19907952,107340.0,107330.0,0.6808074]
[1748461390719,1.19907952,107340.0,107330.0,0.87476894]
[1748461391526,1.19907952,107340.0,107330.0,0.8747392]
[1748461394326,1.19795952,107340.0,107330.0,0.8747392]
[1748461395616,1.38423932,107340.0,107330.0,0.68077766]
[1748461395822,1.38423932,107340.0,107330.0,0.87473353]
[1748461395823,1.19795952,107340.0,107330.0,0.87473353]
[1748461396434,0.74823952,107340.0,107330.0,0.87473353]
[1748461396629,1.19783952,107340.0,107330.0,0.87473353]
[1748461400033,1.55863952,107340.0,107330.0,0.87473353]
[1748461400729,1.55863952,107340.0,107330.0,0.68077199]
[1748461400730,1.74491922,107340.0,107330.0,0.68077199]
[1748461401033,1.55863952,107340.0,107330.0,0.87473353]
[1748461402927,1.10903952,107340.0,107330.0,0.87473353]
[1748461403127,1.55723952,107340.0,107330.0,0.87473353]
[1748461404336,1.55723952,107340.0,107330.0,0.79081479]
[1748461404535,1.55723952,107340.0,107330.0,0.8747404]
[1748461404736,1.74351932,107340.0,107330.0,0.60424029]
[1748461405038,1.74351932,107340.0,107330.0,0.58969408]
[1748461405533,1.83029711,107340.0,107330.0,0.58969408]
[1748461405931,1.74351932,107340.0,107330.0,0.58969408]
[1748461406231,1.83029711,107340.0,107330.0,0.58969408]
[1748461406427,2.07425865,107340.0,107330.0,0.51463511]
[1748461406633,2.07425865,107340.0,107330.0,0.31475511]
[1748461406843,2.07425865,107340.0,107330.0,0.31463511]
[1748461407135,2.07425865,107340.0,107330.0,0.31475511]
[1748461407439,2.16742665,107340.0,107330.0,0.23463511]
[1748461407635,2.16742665,107340.0,107330.0,0.23475511]
[1748461407839,2.28313037,107340.0,107330.0,0.19446807]
[1748461408443,2.19635258,107340.0,107330.0,0.00817137]
[1748461408631,2.19635258,107340.0,107330.0,0.19446867]
[1748461408831,2.19635258,107340.0,107330.0,0.19434867]
[1748461409140,2.19635258,107340.0,107330.0,0.19446867]
[1748461413738,2.00239104,107340.0,107330.0,0.19446867]
[1748461414043,2.19635258,107340.0,107330.0,0.19446867]
[1748461414349,2.28323025,107340.0,107330.0,0.19446867]
[1748461415436,2.16752653,107340.0,107330.0,0.19446867]
[1748461415837,2.28323025,107340.0,107330.0,0.19446867]
[1748461416246,2.16752653,107340.0,107330.0,0.19446867]
[1748461416545,2.28323025,107340.0,107330.0,0.19446867]
[1748461417138,2.28323025,107340.0,107330.0,0.19446857]
[1748461417538,2.19635258,107340.0,107330.0,0.00817137]
[1748461417935,0.1863146,107320.0,107310.0,0.22086908]
[1748461418240,2.02879614,107320.0,107310.0,0.2704106]
[1748461418438,2.18095527,107320.0,107310.0,0.03383718]
[1748461418639,2.18095527,107320.0,107310.0,0.22028908]
[1748461418842,2.18095527,107320.0,107310.0,0.22016908]
[1748461419040,2.18095527,107320.0,107310.0,0.23437199]
[1748461419237,2.18095527,107320.0,107310.0,0.23849199]
[1748461419636,2.18095527,107320.0,107310.0,0.23848275]
[1748461419839,2.18095527,107320.0,107310.0,0.22428908]
[1748461420050,2.18095527,107320.0,107310.0,0.23848306]
[1748461420244,2.18195527,107320.0,107310.0,0.23648306]
[1748461420443,2.18195527,107320.0,107310.0,0.23648308]
[1748461420640,2.18195527,107320.0,107310.0,0.2364823]
[1748461420840,2.18195527,107320.0,107310.0,0.22228908]
[1748461421048,2.18295527,107320.0,107310.0,0.2344823]
[1748461421863,1.98899373,107320.0,107310.0,0.2344823]
[1748461422149,2.18295527,107320.0,107310.0,0.22028908]
[1748461422348,2.18295527,107320.0,107310.0,0.2344751]
[1748461422849,2.18295527,107320.0,107310.0,0.23447]
[1748461423844,2.18295527,107320.0,107310.0,0.23446657]
[1748461424045,2.18295527,107320.0,107310.0,0.26506657]
[1748461424751,1.95567373,107320.0,107310.0,0.49902777]
[1748461425058,1.1259,107320.0,107310.0,0.49902777]
[1748461425354,1.3122153,107320.0,107310.0,0.49902777]
[1748461425550,1.6825,107320.0,107310.0,0.49902777]
[1748461425950,1.1259,107320.0,107310.0,0.48485062]
[1748461426151,1.68254,107320.0,107310.0,0.48485062]
[1748461426547,1.8688553,107320.0,107310.0,0.48485062]
[1748461426748,1.68254,107320.0,107310.0,0.48485062]
[1748461426948,1.8688553,107320.0,107310.0,0.48485062]
[1748461427161,1.68254,107320.0,107310.0,0.49902644]
[1748461427541,1.65024,107320.0,107310.0,0.49902644]
[1748461427748,1.8365553,107320.0,107310.0,0.49902644]
[1748461428058,1.65024,107320.0,107310.0,0.49902644]
[1748461428257,1.8337153,107320.0,107310.0,0.51320323]
[1748461428551,1.8335953,107320.0,107310.0,0.49902644]
[1748461428749,1.8335953,107320.0,107310.0,0.55340654]
[1748461428948,1.8335953,107320.0,107310.0,0.55340953]
[1748461429644,1.64728,107320.0,107310.0,0.55340953]
[1748461429854,1.8335953,107320.0,107310.0,0.54374546]
[1748461430054,1.8335953,107320.0,107310.0,0.55793374]
[1748461430255,1.0936,107320.0,107310.0,0.55793374]
[1748461430461,1.5972,107320.0,107310.0,0.79793374]
[1748461430659,1.5972,107320.0,107310.0,0.79793372]
[1748461431748,1.0436,107320.0,107310.0,0.79793372]
[1748461431958,1.5972,107320.0,107310.0,0.79793372]
[1748461432147,1.5972,107320.0,107310.0,0.75772693]
[1748461432353,1.5972,107320.0,107310.0,0.79795266]
[1748461432547,1.5972,107320.0,107310.0,0.79795267]
[1748461432758,1.5972,107320.0,107310.0,0.79795266]
[1748461433752,1.5972,107320.0,107310.0,0.78376772]
[1748461433956,1.7835153,107320.0,107310.0,0.58980618]
[1748461434151,1.7835153,107320.0,107310.0,0.60399778]
[1748461434353,1.8148153,107320.0,107310.0,0.79798379]
[1748461434555,1.8455153,107320.0,107310.0,0.79798998]
[1748461434962,1.8455153,107320.0,107310.0,0.79799096]
[1748461435162,1.8455153,107320.0,107310.0,0.79799098]
[1748461435553,1.8455153,107320.0,107310.0,0.78379198]
[1748461435858,1.8455153,107320.0,107310.0,0.79799846]
[1748461436059,1.8455153,107320.0,107310.0,0.79799849]
[1748461436248,1.8455153,107320.0,107310.0,0.60403689]
[1748461436455,1.8148153,107320.0,107310.0,0.58983044]
[1748461436653,1.8148153,107320.0,107310.0,0.60403695]
[1748461437262,1.90167443,107320.0,107310.0,0.60403695]